[Event "Late-Titled-Tuesday-Blitz-February-06-2024"]
[Site "Chess.com"]
[Date "2024.02.06"]
[Round "4"]
[White "AldokhinIvan"]
[Black "TheoSlade"]
[Result "1-0"]
[WhiteElo "2623"]
[BlackElo "2461"]
[TimeControl "180+1"]
[EndTime "14:38:52 PST"]
[Termination "AldokhinIvan won on time"]

1. e4 {[%clk 0:02:59.1]} 1... e5 {[%clk 0:03:00.1]} 2. Nf3 {[%clk 0:02:59.6]}
2... Nc6 {[%clk 0:03:00.7]} 3. Bb5 {[%clk 0:03:00]} 3... Nf6 {[%clk 0:03:01.2]}
4. O-O {[%clk 0:02:59.5]} 4... Nxe4 {[%clk 0:03:01]} 5. Re1 {[%clk 0:03:00]}
5... Nd6 {[%clk 0:03:01.6]} 6. Bxc6 {[%clk 0:03:00.3]} 6... dxc6 {[%clk
0:03:01.8]} 7. Nxe5 {[%clk 0:03:01.2]} 7... Be7 {[%clk 0:03:02.4]} 8. b3 {[%clk
0:03:01.7]} 8... O-O {[%clk 0:03:00.9]} 9. Bb2 {[%clk 0:03:02.6]} 9... Bf6
{[%clk 0:02:58.9]} 10. Nc3 {[%clk 0:03:03.2]} 10... Re8 {[%clk 0:02:57.7]} 11.
d4 {[%clk 0:03:03.5]} 11... Nf5 {[%clk 0:02:54.4]} 12. Ne4 {[%clk 0:03:03.1]}
12... Bxe5 {[%clk 0:02:41.2]} 13. dxe5 {[%clk 0:03:02.6]} 13... b6 {[%clk
0:02:35.5]} 14. Qf3 {[%clk 0:02:59.7]} 14... Be6 {[%clk 0:02:28.6]} 15. Rad1
{[%clk 0:02:54.1]} 15... Qe7 {[%clk 0:02:24.1]} 16. g4 {[%clk 0:02:51.2]} 16...
Nh4 {[%clk 0:02:21.4]} 17. Qg3 {[%clk 0:02:50.5]} 17... Bd5 {[%clk 0:02:00.9]}
18. f4 {[%clk 0:02:40]} 18... Bxe4 {[%clk 0:01:51.3]} 19. Rxe4 {[%clk
0:02:39.7]} 19... Rad8 {[%clk 0:01:51.3]} 20. Rf1 {[%clk 0:02:36.7]} 20... Rd2
{[%clk 0:01:49.3]} 21. Rf2 {[%clk 0:02:35.1]} 21... Rd1+ {[%clk 0:01:43.2]} 22.
Rf1 {[%clk 0:02:33.3]} 22... Rd2 {[%clk 0:01:13]} 23. Kh1 {[%clk 0:02:33.2]}
23... Rxc2 {[%clk 0:01:06]} 24. Bd4 {[%clk 0:02:26.7]} 24... c5 {[%clk
0:00:40.7]} 25. Bf2 {[%clk 0:02:19.3]} 25... Ng6 {[%clk 0:00:40.1]} 26. Rfe1
{[%clk 0:02:13.9]} 26... Qd8 {[%clk 0:00:32.8]} 27. f5 {[%clk 0:02:11.4]} 27...
Qd2 {[%clk 0:00:30.8]} 28. Be3 {[%clk 0:01:59.9]} 28... Qd5 {[%clk 0:00:29.5]}
29. Bf4 {[%clk 0:01:54.1]} 29... Nxf4 {[%clk 0:00:26.5]} 30. Qxf4 {[%clk
0:01:55]} 30... Qd2 {[%clk 0:00:17.9]} 31. Qg3 {[%clk 0:01:51.4]} 31... Rc1
{[%clk 0:00:13]} 32. Rxc1 {[%clk 0:01:32.8]} 32... Qxc1+ {[%clk 0:00:13.6]} 33.
Re1 {[%clk 0:01:33.6]} 33... Qd2 {[%clk 0:00:14.3]} 34. Kg1 {[%clk 0:01:31.1]}
34... Qd4+ {[%clk 0:00:13.7]} 35. Kg2 {[%clk 0:01:29.3]} 35... Qd5+ {[%clk
0:00:13.4]} 36. Kh3 {[%clk 0:01:29.3]} 36... Rd8 {[%clk 0:00:11.8]} 37. f6
{[%clk 0:01:23]} 37... Qd3 {[%clk 0:00:10.8]} 38. Re3 {[%clk 0:01:22.9]} 38...
Qf1+ {[%clk 0:00:11.4]} 39. Kh4 {[%clk 0:01:22.6]} 39... gxf6 {[%clk 0:00:08.9]}
40. Rf3 {[%clk 0:01:21]} 40... Qc1 {[%clk 0:00:07.7]} 41. Rxf6 {[%clk
0:01:20.2]} 41... Qd2 {[%clk 0:00:03.4]} 42. Rf5 {[%clk 0:01:16]} 42... Rd3
{[%clk 0:00:03.1]} 43. Qg1 {[%clk 0:01:01.6]} 43... Qh6+ {[%clk 0:00:02.5]} 44.
Rh5 {[%clk 0:01:01.6]} 44... Qg6 {[%clk 0:00:02.5]} 45. Qf1 {[%clk 0:00:55.3]}
45... Rd4 {[%clk 0:00:03.1]} 46. Rg5 {[%clk 0:00:55.1]} 1-0

[Event "Late-Titled-Tuesday-Blitz-February-06-2024"]
[Site "Chess.com"]
[Date "2024.02.06"]
[Round "4"]
[White "VitaliyChayka"]
[Black "GlavkonVVS"]
[Result "1-0"]
[WhiteElo "2430"]
[BlackElo "2617"]
[TimeControl "180+1"]
[EndTime "14:38:53 PST"]
[Termination "VitaliyChayka won by resignation"]

1. d4 {[%clk 0:03:00.9]} 1... Nf6 {[%clk 0:02:56.8]} 2. Bf4 {[%clk 0:03:01.4]}
2... c5 {[%clk 0:02:56.5]} 3. e3 {[%clk 0:03:02.1]} 3... e6 {[%clk 0:02:55.2]}
4. c3 {[%clk 0:03:01.7]} 4... b6 {[%clk 0:02:52.4]} 5. Nf3 {[%clk 0:03:01.2]}
5... Bb7 {[%clk 0:02:52.7]} 6. Be2 {[%clk 0:03:01.6]} 6... Be7 {[%clk
0:02:52.8]} 7. h3 {[%clk 0:03:01.6]} 7... O-O {[%clk 0:02:51.9]} 8. Nbd2 {[%clk
0:03:02.1]} 8... d5 {[%clk 0:02:51.9]} 9. O-O {[%clk 0:03:00.5]} 9... Nc6 {[%clk
0:02:52.4]} 10. Ne5 {[%clk 0:02:59.6]} 10... Nxe5 {[%clk 0:02:48.6]} 11. dxe5
{[%clk 0:03:00.5]} 11... Nd7 {[%clk 0:02:47.4]} 12. Nf3 {[%clk 0:03:00.8]} 12...
f6 {[%clk 0:02:44]} 13. exf6 {[%clk 0:02:59]} 13... Bxf6 {[%clk 0:02:43.8]} 14.
a4 {[%clk 0:02:53.9]} 14... e5 {[%clk 0:02:40.7]} 15. Bh2 {[%clk 0:02:51.5]}
15... a6 {[%clk 0:02:35]} 16. Nd2 {[%clk 0:02:47.1]} 16... Qe7 {[%clk
0:02:30.6]} 17. e4 {[%clk 0:02:44.7]} 17... d4 {[%clk 0:02:29.4]} 18. Qb3+
{[%clk 0:02:40.6]} 18... Kh8 {[%clk 0:02:28.4]} 19. Nc4 {[%clk 0:02:40.6]} 19...
Bxe4 {[%clk 0:02:12.5]} 20. Nxb6 {[%clk 0:02:39.1]} 20... Rab8 {[%clk 0:02:10]}
21. a5 {[%clk 0:02:37.4]} 21... d3 {[%clk 0:02:04.6]} 22. Bd1 {[%clk 0:02:34.7]}
22... Qd6 {[%clk 0:01:56.8]} 23. Qc4 {[%clk 0:02:22.9]} 23... Bg6 {[%clk
0:01:30.6]} 24. Bf3 {[%clk 0:02:12.1]} 24... Nxb6 {[%clk 0:01:29.2]} 25. axb6
{[%clk 0:02:12.7]} 25... Rxb6 {[%clk 0:01:28.8]} 26. Rfd1 {[%clk 0:02:06.3]}
26... Rd8 {[%clk 0:01:27.5]} 27. Ra5 {[%clk 0:01:57]} 27... Rxb2 {[%clk
0:01:18.3]} 28. Rxa6 {[%clk 0:01:56.7]} 28... Qf8 {[%clk 0:01:10.4]} 29. Bg3
{[%clk 0:01:50]} 29... h6 {[%clk 0:01:09.6]} 30. Be4 {[%clk 0:01:46.4]} 30...
Bxe4 {[%clk 0:00:59.4]} 31. Qxe4 {[%clk 0:01:47.3]} 31... Re2 {[%clk 0:00:59.3]}
32. Qc4 {[%clk 0:01:43.3]} 32... e4 {[%clk 0:00:57.3]} 33. Re6 {[%clk
0:01:39.4]} 33... d2 {[%clk 0:00:47.5]} 34. Qxe2 {[%clk 0:01:38.4]} 34... Bxc3
{[%clk 0:00:38.9]} 35. Rxe4 {[%clk 0:01:36.4]} 35... Qf5 {[%clk 0:00:34]} 36. f3
{[%clk 0:01:32.9]} 36... Kh7 {[%clk 0:00:27.9]} 37. Bf2 {[%clk 0:01:26.7]} 37...
Rd5 {[%clk 0:00:22.8]} 38. Rc4 {[%clk 0:01:25.1]} 38... Bb4 {[%clk 0:00:20.8]}
39. Qe4 {[%clk 0:01:23.9]} 39... Kg6 {[%clk 0:00:14.8]} 40. g4 {[%clk
0:01:22.4]} 40... Qxe4 {[%clk 0:00:14.5]} 41. fxe4 {[%clk 0:01:23.3]} 41... Re5
{[%clk 0:00:13]} 42. Bg3 {[%clk 0:01:19.7]} 42... Re6 {[%clk 0:00:12]} 43. e5
{[%clk 0:01:19]} 43... Ra6 {[%clk 0:00:10.9]} 44. Kf2 {[%clk 0:01:19]} 44... Ra3
{[%clk 0:00:10.6]} 45. Rf4 {[%clk 0:01:05.9]} 45... Rd3 {[%clk 0:00:09.4]} 46.
e6 {[%clk 0:01:04.3]} 46... Rd8 {[%clk 0:00:05.7]} 47. e7 {[%clk 0:01:00.5]}
47... Re8 {[%clk 0:00:05.7]} 48. Bh4 {[%clk 0:01:00.6]} 48... Kh7 {[%clk
0:00:04.5]} 49. Rf8 {[%clk 0:00:59.2]} 49... Rxe7 {[%clk 0:00:02.6]} 50. Bxe7
{[%clk 0:00:59.1]} 50... c4 {[%clk 0:00:02.5]} 51. Bxb4 {[%clk 0:00:58.4]} 1-0

[Event "Late-Titled-Tuesday-Blitz-February-06-2024"]
[Site "Chess.com"]
[Date "2024.02.06"]
[Round "4"]
[White "pooh2012"]
[Black "ameetghasi100"]
[Result "0-1"]
[WhiteElo "2527"]
[BlackElo "2738"]
[TimeControl "180+1"]
[EndTime "14:38:57 PST"]
[Termination "ameetghasi100 won by resignation"]

1. Nf3 {[%clk 0:03:00.9]} 1... g6 {[%clk 0:03:00.9]} 2. h4 {[%clk 0:02:59.7]}
2... h6 {[%clk 0:02:59.4]} 3. d4 {[%clk 0:02:59.8]} 3... Bg7 {[%clk 0:02:58.9]}
4. c3 {[%clk 0:02:58.9]} 4... d6 {[%clk 0:02:58.2]} 5. e4 {[%clk 0:02:56.2]}
5... Nc6 {[%clk 0:02:58.5]} 6. Be3 {[%clk 0:02:52.6]} 6... Nf6 {[%clk
0:02:57.7]} 7. Qc2 {[%clk 0:02:47.3]} 7... Ng4 {[%clk 0:02:56.7]} 8. Bf4 {[%clk
0:02:41]} 8... e5 {[%clk 0:02:56]} 9. dxe5 {[%clk 0:02:37.6]} 9... Ncxe5 {[%clk
0:02:53]} 10. Be2 {[%clk 0:02:31.9]} 10... O-O {[%clk 0:02:52.4]} 11. Nd4 {[%clk
0:02:02.3]} 11... Nf6 {[%clk 0:02:43.1]} 12. Nd2 {[%clk 0:01:54.9]} 12... Re8
{[%clk 0:02:40]} 13. O-O-O {[%clk 0:01:44.1]} 13... a5 {[%clk 0:02:39.4]} 14. f3
{[%clk 0:01:19.2]} 14... a4 {[%clk 0:02:37.4]} 15. g4 {[%clk 0:01:10.2]} 15...
c6 {[%clk 0:02:25.1]} 16. Nc4 {[%clk 0:00:51.8]} 16... Qe7 {[%clk 0:02:12.8]}
17. Nb6 {[%clk 0:00:27.5]} 17... Ra5 {[%clk 0:02:12]} 18. Qd2 {[%clk 0:00:18.4]}
18... h5 {[%clk 0:02:05]} 19. Nxc8 {[%clk 0:00:17.8]} 19... Rxc8 {[%clk
0:02:04.2]} 20. g5 {[%clk 0:00:18.1]} 20... Nfd7 {[%clk 0:02:02.4]} 21. Nc2
{[%clk 0:00:18.3]} 21... d5 {[%clk 0:01:58]} 22. c4 {[%clk 0:00:14.6]} 22... Rc5
{[%clk 0:01:52.9]} 23. Qb4 {[%clk 0:00:06.8]} 23... dxe4 {[%clk 0:01:40.6]} 24.
Be3 {[%clk 0:00:05.3]} 24... exf3 {[%clk 0:01:39.4]} 25. Bxc5 {[%clk 0:00:05.4]}
25... Nxc5 {[%clk 0:01:39]} 26. Bf1 {[%clk 0:00:04.4]} 26... b5 {[%clk
0:01:30.4]} 27. Kb1 {[%clk 0:00:03.9]} 27... bxc4 {[%clk 0:01:29.4]} 28. Bxc4
{[%clk 0:00:04.1]} 28... f2 {[%clk 0:01:21.2]} 29. Rhf1 {[%clk 0:00:03.9]} 29...
Ng4 {[%clk 0:01:20.6]} 30. Rd2 {[%clk 0:00:02.6]} 30... a3 {[%clk 0:01:03.5]}
31. Rdxf2 {[%clk 0:00:02.6]} 31... Nxf2 {[%clk 0:00:57.2]} 32. Rxf2 {[%clk
0:00:03.5]} 32... Rf8 {[%clk 0:00:55.5]} 33. Re2 {[%clk 0:00:03.7]} 33... Qd6
{[%clk 0:00:50.9]} 34. Rd2 {[%clk 0:00:01.9]} 34... Qe5 {[%clk 0:00:45.7]} 35.
Qxa3 {[%clk 0:00:02.2]} 35... Rb8 {[%clk 0:00:41.1]} 36. b3 {[%clk 0:00:02.6]}
36... Ne4 {[%clk 0:00:38.9]} 37. Rd3 {[%clk 0:00:02.3]} 37... Nc3+ {[%clk
0:00:37.8]} 38. Kc1 {[%clk 0:00:02.5]} 38... Qf4+ {[%clk 0:00:33.1]} 39. Rd2
{[%clk 0:00:02.8]} 39... Ne4 {[%clk 0:00:31.8]} 40. Qa5 {[%clk 0:00:02.2]} 40...
Bc3 {[%clk 0:00:27.8]} 0-1

[Event "Late-Titled-Tuesday-Blitz-February-06-2024"]
[Site "Chess.com"]
[Date "2024.02.06"]
[Round "4"]
[White "ansko1999"]
[Black "TigrVShlyape"]
[Result "1/2-1/2"]
[WhiteElo "2695"]
[BlackElo "2926"]
[TimeControl "180+1"]
[EndTime "14:38:59 PST"]
[Termination "Game drawn by repetition"]

1. e4 {[%clk 0:03:00.9]} 1... c5 {[%clk 0:02:47.7]} 2. Nf3 {[%clk 0:03:00.7]}
2... e6 {[%clk 0:02:46.9]} 3. c3 {[%clk 0:02:58.6]} 3... Nf6 {[%clk 0:02:42.2]}
4. e5 {[%clk 0:02:58]} 4... Nd5 {[%clk 0:02:42.2]} 5. d4 {[%clk 0:02:58]} 5...
cxd4 {[%clk 0:02:41.2]} 6. Qxd4 {[%clk 0:02:58.5]} 6... Nc6 {[%clk 0:02:40.1]}
7. Qg4 {[%clk 0:02:59.1]} 7... Qc7 {[%clk 0:02:35.4]} 8. Qg3 {[%clk 0:02:54.9]}
8... d6 {[%clk 0:02:34.1]} 9. Bb5 {[%clk 0:02:53]} 9... Bd7 {[%clk 0:02:32.5]}
10. exd6 {[%clk 0:02:35.2]} 10... Bxd6 {[%clk 0:02:30.6]} 11. Qxg7 {[%clk
0:02:33.7]} 11... O-O-O {[%clk 0:02:30.8]} 12. Qh6 {[%clk 0:02:11.6]} 12... Rhg8
{[%clk 0:02:29]} 13. g3 {[%clk 0:02:05.3]} 13... a6 {[%clk 0:02:26.9]} 14. Be2
{[%clk 0:02:03.3]} 14... f5 {[%clk 0:02:01.1]} 15. Nbd2 {[%clk 0:01:44.2]} 15...
e5 {[%clk 0:01:47.1]} 16. Nc4 {[%clk 0:01:36]} 16... Bc5 {[%clk 0:01:47]} 17.
Ne3 {[%clk 0:01:29.8]} 17... Nde7 {[%clk 0:01:18.5]} 18. Bd2 {[%clk 0:01:07]}
18... f4 {[%clk 0:01:17.3]} 19. Nc4 {[%clk 0:00:47.2]} 19... Nf5 {[%clk
0:01:16.6]} 20. Qh5 {[%clk 0:00:39.8]} 20... b5 {[%clk 0:01:11.2]} 21. Na3
{[%clk 0:00:36.8]} 21... e4 {[%clk 0:01:03.6]} 22. Bxf4 {[%clk 0:00:32.7]} 22...
Qb6 {[%clk 0:01:01.1]} 23. Nd4 {[%clk 0:00:26.5]} 23... Ncxd4 {[%clk 0:00:57.1]}
24. cxd4 {[%clk 0:00:27.4]} 24... Bb4+ {[%clk 0:00:56.5]} 25. Kf1 {[%clk
0:00:23.1]} 25... Nxd4 {[%clk 0:00:44.3]} 26. Rc1+ {[%clk 0:00:22.8]} 26... Kb7
{[%clk 0:00:41.2]} 27. Rc7+ {[%clk 0:00:15.1]} 27... Ka8 {[%clk 0:00:40.1]} 28.
Qxh7 {[%clk 0:00:03.3]} 28... Bc6 {[%clk 0:00:30.6]} 29. Be3 {[%clk 0:00:02.2]}
29... Rgf8 {[%clk 0:00:22.8]} 30. Nc2 {[%clk 0:00:02.5]} 30... Bc5 {[%clk
0:00:20.9]} 31. b4 {[%clk 0:00:02.4]} 31... Bd6 {[%clk 0:00:19.7]} 32. Nxd4
{[%clk 0:00:02.3]} 32... Bxc7 {[%clk 0:00:18.4]} 33. Ne6 {[%clk 0:00:02.2]}
33... Qxe3 {[%clk 0:00:18.2]} 34. Nxc7+ {[%clk 0:00:01.7]} 34... Kb8 {[%clk
0:00:17.5]} 35. Nxa6+ {[%clk 0:00:01.4]} 35... Ka8 {[%clk 0:00:17.9]} 36. Nc7+
{[%clk 0:00:01.6]} 36... Kb8 {[%clk 0:00:18.1]} 37. Na6+ {[%clk 0:00:02.2]}
37... Ka8 {[%clk 0:00:18.5]} 38. Nc7+ {[%clk 0:00:02.6]} 38... Kb8 {[%clk
0:00:17.5]} 39. Na6+ {[%clk 0:00:02.7]} 1/2-1/2

[Event "Late-Titled-Tuesday-Blitz-February-06-2024"]
[Site "Chess.com"]
[Date "2024.02.06"]
[Round "4"]
[White "Squirlolz"]
[Black "nihalsarin"]
[Result "0-1"]
[WhiteElo "2579"]
[BlackElo "3104"]
[TimeControl "180+1"]
[EndTime "14:39:00 PST"]
[Termination "nihalsarin won on time"]

1. e4 {[%clk 0:03:00.9]} 1... c6 {[%clk 0:02:54]} 2. d4 {[%clk 0:02:58.4]} 2...
d5 {[%clk 0:02:54.9]} 3. Nd2 {[%clk 0:02:58.8]} 3... dxe4 {[%clk 0:02:49.5]} 4.
Nxe4 {[%clk 0:02:59.7]} 4... Nd7 {[%clk 0:02:49.7]} 5. Nf3 {[%clk 0:02:58.1]}
5... Ngf6 {[%clk 0:02:46.6]} 6. Nxf6+ {[%clk 0:02:58.2]} 6... Nxf6 {[%clk
0:02:45.4]} 7. c3 {[%clk 0:02:56.2]} 7... Bf5 {[%clk 0:02:44.3]} 8. Bd3 {[%clk
0:02:46.2]} 8... Bxd3 {[%clk 0:02:40.7]} 9. Qxd3 {[%clk 0:02:47.1]} 9... e6
{[%clk 0:02:41.5]} 10. Bf4 {[%clk 0:02:45.5]} 10... Be7 {[%clk 0:02:42.2]} 11.
O-O {[%clk 0:02:45.6]} 11... O-O {[%clk 0:02:43]} 12. Rfe1 {[%clk 0:02:46.2]}
12... Re8 {[%clk 0:02:41.9]} 13. Rad1 {[%clk 0:02:46]} 13... Qa5 {[%clk
0:02:41.6]} 14. a3 {[%clk 0:02:43.5]} 14... Rad8 {[%clk 0:02:42.2]} 15. h3
{[%clk 0:02:38.4]} 15... Qb5 {[%clk 0:02:38.9]} 16. Qxb5 {[%clk 0:02:12.4]}
16... cxb5 {[%clk 0:02:39.8]} 17. Bg5 {[%clk 0:02:12.6]} 17... Nd5 {[%clk
0:02:37.1]} 18. Bxe7 {[%clk 0:02:12.8]} 18... Rxe7 {[%clk 0:02:38]} 19. Ne5
{[%clk 0:02:12.9]} 19... Rc7 {[%clk 0:02:36.2]} 20. Nd3 {[%clk 0:02:07]} 20...
Nb6 {[%clk 0:02:31.8]} 21. Re5 {[%clk 0:02:00.2]} 21... a6 {[%clk 0:02:30.4]}
22. Re2 {[%clk 0:01:51.5]} 22... Kf8 {[%clk 0:02:25.2]} 23. g4 {[%clk
0:01:41.9]} 23... Na4 {[%clk 0:02:21]} 24. Kg2 {[%clk 0:01:37.5]} 24... h6
{[%clk 0:02:13.3]} 25. f4 {[%clk 0:01:36.9]} 25... Nb6 {[%clk 0:02:06.7]} 26.
Kf3 {[%clk 0:01:36.6]} 26... Nc4 {[%clk 0:02:05.2]} 27. Ne5 {[%clk 0:01:31]}
27... Nxe5+ {[%clk 0:01:53.7]} 28. fxe5 {[%clk 0:01:20.6]} 28... a5 {[%clk
0:01:53.3]} 29. Ke4 {[%clk 0:01:03.2]} 29... b4 {[%clk 0:01:47.1]} 30. axb4
{[%clk 0:01:04.1]} 30... axb4 {[%clk 0:01:48]} 31. Re3 {[%clk 0:00:51.2]} 31...
g5 {[%clk 0:01:46.9]} 32. Ra1 {[%clk 0:00:39.6]} 32... Kg7 {[%clk 0:01:45.5]}
33. Rf3 {[%clk 0:00:33.3]} 33... b5 {[%clk 0:01:38.8]} 34. Ra5 {[%clk
0:00:30.9]} 34... bxc3 {[%clk 0:01:37]} 35. Rxc3 {[%clk 0:00:29.8]} 35... Rcd7
{[%clk 0:01:36.8]} 36. Rd3 {[%clk 0:00:28.9]} 36... Rd5 {[%clk 0:01:36.7]} 37.
Ra7 {[%clk 0:00:21.4]} 37... Kg6 {[%clk 0:01:36.4]} 38. b4 {[%clk 0:00:19.1]}
38... Kg7 {[%clk 0:01:29.1]} 39. Rb7 {[%clk 0:00:19.2]} 39... Kf8 {[%clk
0:01:28.1]} 40. Ra7 {[%clk 0:00:17.1]} 40... Ke8 {[%clk 0:01:14.4]} 41. Rc7
{[%clk 0:00:16.8]} 41... R8d7 {[%clk 0:01:13.3]} 42. Rxd7 {[%clk 0:00:05.2]}
42... Rxd7 {[%clk 0:01:14.2]} 43. Ra3 {[%clk 0:00:05.5]} 43... Rc7 {[%clk
0:01:12.6]} 44. Ra5 {[%clk 0:00:04.3]} 44... Rc3 {[%clk 0:01:12.4]} 45. Rxb5
{[%clk 0:00:04.4]} 45... Rxh3 {[%clk 0:01:13.1]} 46. Rb8+ {[%clk 0:00:04]} 46...
Ke7 {[%clk 0:01:13.7]} 47. Rb7+ {[%clk 0:00:04.6]} 47... Kf8 {[%clk 0:01:13.9]}
48. Rb8+ {[%clk 0:00:05]} 48... Kg7 {[%clk 0:01:14]} 49. b5 {[%clk 0:00:04.4]}
49... Rg3 {[%clk 0:01:14.6]} 50. b6 {[%clk 0:00:04.4]} 50... Rxg4+ {[%clk
0:01:15.1]} 51. Ke3 {[%clk 0:00:05.1]} 51... Rg3+ {[%clk 0:01:15.2]} 52. Ke4
{[%clk 0:00:04.2]} 52... Rb3 {[%clk 0:01:10.1]} 53. b7 {[%clk 0:00:01.4]} 53...
h5 {[%clk 0:01:10.5]} 54. d5 {[%clk 0:00:01.4]} 54... Rb4+ {[%clk 0:01:11]} 55.
Kf3 {[%clk 0:00:01.6]} 55... exd5 {[%clk 0:01:11.9]} 56. Kg3 {[%clk 0:00:01.4]}
56... Rb3+ {[%clk 0:01:11.3]} 57. Kf2 {[%clk 0:00:01.7]} 57... h4 {[%clk
0:01:11.5]} 0-1

[Event "Late-Titled-Tuesday-Blitz-February-06-2024"]
[Site "Chess.com"]
[Date "2024.02.06"]
[Round "4"]
[White "JoakimVonAnd"]
[Black "Harsha_Bharathakoti"]
[Result "1-0"]
[WhiteElo "2669"]
[BlackElo "2900"]
[TimeControl "180+1"]
[EndTime "14:39:02 PST"]
[Termination "JoakimVonAnd won on time"]

1. d4 {[%clk 0:03:00.9]} 1... d5 {[%clk 0:02:58]} 2. c4 {[%clk 0:03:00.7]} 2...
e6 {[%clk 0:02:58.2]} 3. Nc3 {[%clk 0:03:01]} 3... a6 {[%clk 0:02:58.7]} 4. cxd5
{[%clk 0:03:00.1]} 4... exd5 {[%clk 0:02:59.6]} 5. Bf4 {[%clk 0:02:59.2]} 5...
c6 {[%clk 0:02:59.5]} 6. e3 {[%clk 0:02:59.2]} 6... Bd6 {[%clk 0:02:59.7]} 7.
Bg3 {[%clk 0:02:51.1]} 7... Ne7 {[%clk 0:02:59]} 8. Nf3 {[%clk 0:02:51]} 8...
O-O {[%clk 0:02:58.7]} 9. Bd3 {[%clk 0:02:51.2]} 9... Bf5 {[%clk 0:02:58.8]} 10.
O-O {[%clk 0:02:50.3]} 10... Bxg3 {[%clk 0:02:56.8]} 11. hxg3 {[%clk 0:02:50]}
11... Nd7 {[%clk 0:02:56.3]} 12. Na4 {[%clk 0:02:49.9]} 12... Bxd3 {[%clk
0:02:43.6]} 13. Qxd3 {[%clk 0:02:49.8]} 13... Re8 {[%clk 0:02:43.5]} 14. Rac1
{[%clk 0:02:49.1]} 14... Nc8 {[%clk 0:02:36.8]} 15. Nc5 {[%clk 0:02:43.5]} 15...
Nd6 {[%clk 0:02:35.8]} 16. Nxd7 {[%clk 0:02:37]} 16... Qxd7 {[%clk 0:02:36.7]}
17. Ne5 {[%clk 0:02:37.5]} 17... Qe6 {[%clk 0:02:33.7]} 18. b3 {[%clk
0:02:28.5]} 18... g6 {[%clk 0:02:24.6]} 19. Qd1 {[%clk 0:02:24]} 19... Kg7
{[%clk 0:02:07.7]} 20. Qg4 {[%clk 0:02:22.2]} 20... Nf5 {[%clk 0:01:57.8]} 21.
Nd3 {[%clk 0:02:08.4]} 21... h5 {[%clk 0:01:57]} 22. Qh3 {[%clk 0:02:07.9]}
22... Qf6 {[%clk 0:01:51.8]} 23. Nc5 {[%clk 0:02:05.1]} 23... Re7 {[%clk
0:01:52.1]} 24. Nd3 {[%clk 0:01:56.9]} 24... Rh8 {[%clk 0:01:48.2]} 25. g4
{[%clk 0:01:45.1]} 25... hxg4 {[%clk 0:01:17.9]} 26. Qxg4 {[%clk 0:01:46]} 26...
Re4 {[%clk 0:01:11.1]} 27. Nf4 {[%clk 0:01:18.2]} 27... Nxd4 {[%clk 0:01:11.6]}
28. g3 {[%clk 0:01:09.5]} 28... Nf5 {[%clk 0:01:00.4]} 29. Kg2 {[%clk
0:01:05.7]} 29... Rxe3 {[%clk 0:00:52.3]} 30. Rce1 {[%clk 0:00:52.3]} 30... Rxe1
{[%clk 0:00:29.6]} 31. Rxe1 {[%clk 0:00:53.2]} 31... d4 {[%clk 0:00:24.7]} 32.
Re8 {[%clk 0:00:51.5]} 32... Qd6 {[%clk 0:00:15.1]} 33. Re2 {[%clk 0:00:42.3]}
33... c5 {[%clk 0:00:09.6]} 34. Re6 {[%clk 0:00:37]} 34... fxe6 {[%clk
0:00:06.3]} 35. Qxg6+ {[%clk 0:00:36.9]} 35... Kf8 {[%clk 0:00:07]} 36. Qf6+
{[%clk 0:00:22.2]} 36... Kg8 {[%clk 0:00:07.5]} 37. Nxe6 {[%clk 0:00:22.6]}
37... Qd5+ {[%clk 0:00:07.9]} 38. f3 {[%clk 0:00:20.6]} 38... Ne3+ {[%clk
0:00:07.7]} 39. Kg1 {[%clk 0:00:20.2]} 1-0

[Event "Late-Titled-Tuesday-Blitz-February-06-2024"]
[Site "Chess.com"]
[Date "2024.02.06"]
[Round "4"]
[White "Bkmzzzzz"]
[Black "Lennis93"]
[Result "0-1"]
[WhiteElo "2418"]
[BlackElo "2682"]
[TimeControl "180+1"]
[EndTime "14:39:09 PST"]
[Termination "Lennis93 won by resignation"]

1. e4 {[%clk 0:03:00.9]} 1... c5 {[%clk 0:02:58.7]} 2. Nf3 {[%clk 0:03:00.6]}
2... e6 {[%clk 0:02:58.9]} 3. d3 {[%clk 0:03:00.8]} 3... Nc6 {[%clk 0:02:57.7]}
4. g3 {[%clk 0:03:01]} 4... g6 {[%clk 0:02:58]} 5. Bg2 {[%clk 0:03:01.5]} 5...
Bg7 {[%clk 0:02:58.9]} 6. O-O {[%clk 0:03:01.4]} 6... Nge7 {[%clk 0:02:59.5]} 7.
Re1 {[%clk 0:02:59.5]} 7... d6 {[%clk 0:02:59.6]} 8. c3 {[%clk 0:02:57.7]} 8...
e5 {[%clk 0:02:59.6]} 9. Na3 {[%clk 0:02:37.6]} 9... O-O {[%clk 0:02:58.3]} 10.
Nc2 {[%clk 0:02:36]} 10... d5 {[%clk 0:02:56.9]} 11. exd5 {[%clk 0:02:29.1]}
11... Nxd5 {[%clk 0:02:57.8]} 12. d4 {[%clk 0:02:23.2]} 12... exd4 {[%clk
0:02:17.9]} 13. cxd4 {[%clk 0:02:24.1]} 13... cxd4 {[%clk 0:02:10.1]} 14. Nfxd4
{[%clk 0:02:13.6]} 14... Nxd4 {[%clk 0:01:44.6]} 15. Nxd4 {[%clk 0:02:14.5]}
15... Qb6 {[%clk 0:01:37.2]} 16. Bxd5 {[%clk 0:01:30.8]} 16... Bxd4 {[%clk
0:01:35.4]} 17. Be3 {[%clk 0:01:31.1]} 17... Bxe3 {[%clk 0:01:30.6]} 18. Rxe3
{[%clk 0:01:32]} 18... Qxb2 {[%clk 0:01:21.7]} 19. Rb1 {[%clk 0:01:28.1]} 19...
Qf6 {[%clk 0:01:02.5]} 20. Bxb7 {[%clk 0:01:13.3]} 20... Bxb7 {[%clk 0:01:00.2]}
21. Rxb7 {[%clk 0:01:14.2]} 21... Rad8 {[%clk 0:00:53.8]} 22. Qb3 {[%clk
0:01:10]} 22... Qa1+ {[%clk 0:00:46]} 23. Kg2 {[%clk 0:01:05.5]} 23... Rd1
{[%clk 0:00:46.5]} 24. Rf3 {[%clk 0:00:31.2]} 24... Rg1+ {[%clk 0:00:46.2]} 25.
Kh3 {[%clk 0:00:30.9]} 25... Qg7 {[%clk 0:00:46.5]} 26. Rf4 {[%clk 0:00:15.3]}
26... Qh6+ {[%clk 0:00:44.3]} 27. Rh4 {[%clk 0:00:15.9]} 27... Qg5 {[%clk
0:00:44.6]} 28. Rg4 {[%clk 0:00:15.6]} 28... Qf5 {[%clk 0:00:43.9]} 29. Rb5
{[%clk 0:00:14.4]} 29... Qxf2 {[%clk 0:00:40.5]} 30. Rf4 {[%clk 0:00:15]} 30...
Qg2+ {[%clk 0:00:40.5]} 31. Kg4 {[%clk 0:00:14.6]} 31... Qxh2 {[%clk 0:00:39.3]}
32. Rxf7 {[%clk 0:00:12.6]} 32... Rxg3+ {[%clk 0:00:20]} 33. Qxg3 {[%clk
0:00:10]} 33... Qxg3+ {[%clk 0:00:20.9]} 34. Kxg3 {[%clk 0:00:10.7]} 34... Rxf7
{[%clk 0:00:21.7]} 35. a4 {[%clk 0:00:09.3]} 35... Kg7 {[%clk 0:00:22.6]} 36.
Kg4 {[%clk 0:00:09.5]} 36... Rc7 {[%clk 0:00:17.2]} 37. a5 {[%clk 0:00:09.5]}
37... Kf6 {[%clk 0:00:14]} 38. a6 {[%clk 0:00:07.9]} 38... h5+ {[%clk
0:00:14.2]} 39. Kg3 {[%clk 0:00:07.2]} 39... Rc3+ {[%clk 0:00:14.7]} 40. Kf4
{[%clk 0:00:07.1]} 40... Rc4+ {[%clk 0:00:14.2]} 41. Kg3 {[%clk 0:00:06.8]}
41... Ra4 {[%clk 0:00:15.1]} 0-1